{"text_format":"1","workbook":"xlsx","n_sheets":1,"sheets":["excelformation.fr"],"not_rendered":{"charts":0,"images":0,"macros":1,"external_links":0,"defined_names":2,"comments":0,"pivot_tables":0},"unopened":[],"bounds":{"document_bytes":16777216,"sheet_cells":100000,"rows_first":2000,"rows_last":500,"rows_between":2000,"halvings":0,"cell_chars":16384,"cell_head_chars":4096},"cells_cut":0,"cells_raw":0,"read":"whole","date_system":"1900"}

{"sheet":"excelformation.fr","index":0,"n_rows":37,"n_cols":2,"rows_kept":37,"cut":false,"hidden":false,"merged":[]}
["Excelformation.fr - Votre formateur de référence sur Excel"]
[]
["Comment écrire des nombres en toutes lettres sur Excel"]
["https://www.excelformation.fr/nombre-en-lettres-excel.html"]
[]
[]
["En Chiffres","En Lettres"]
[5,{"$f":"nombreEnLettres(A8)","v":" Cinq"}]
[54," Cinquante Quatre"]
[872," Huit Cent Soixante Douze"]
[65432," Soixante Cinq Mille Quatre Cent Trente Deux"]
[123765," Cent Vingt Trois Mille Sept Cent Soixante Cinq"]
[654982343," Six Cent Cinquante Quatre Millions Neuf Cent Quatre-Vingt Deux Mille Trois Cent Quarante Trois"]
[22654654654.540001," Vingt Deux Milliards Six Cent Cinquante Quatre Millions Six Cent Cinquante Quatre Mille Six Cent Cinquante Quatre Virgule Cinquante Quatre"]
[654642.64," Six Cent Cinquante Quatre Mille Six Cent Quarante Deux Virgule Soixante Quatre"]
[65465657653.32," Soixante Cinq Milliards Quatre Cent Soixante Cinq Millions Six Cent Cinquante Sept Mille Six Cent Cinquante Trois Virgule Trente Deux"]
[654982343," Six Cent Cinquante Quatre Millions Neuf Cent Quatre-Vingt Deux Mille Trois Cent Quarante Trois"]
[100000," Cent Zéro Mille Zéro"]
[200000," Deux Cents Zéro Mille Zéro"]
[300000," Trois Cents Zéro Mille Zéro"]
[400000," Quatre Cents Zéro Mille Zéro"]
[500000," Cinq Cents Zéro Mille Zéro"]
[600000," Six Cents Zéro Mille Zéro"]
[700000," Sept Cents Zéro Mille Zéro"]
[800000," Huit Cents Zéro Mille Zéro"]
[900000," Neuf Cents Zéro Mille Zéro"]
[1000000," Un Million Zéro"]
[2000000," Deux Millions Zéro"]
[3000000," Trois Millions Zéro"]
[4000000," Quatre Millions Zéro"]
[5000000," Cinq Millions Zéro"]
[6000000," Six Millions Zéro"]
[7000000," Sept Millions Zéro"]
[8000000," Huit Millions Zéro"]
[9000000," Neuf Millions Zéro"]
[10000000," Dix Millions Zéro"]
[100000.22," Cent Zéro Mille Zéro Virgule Vingt Deux"]